[Event "Early-Titled-Tuesday-Blitz-September-12-2023"]
[Site "Chess.com"]
[Date "2023.09.12"]
[Round "4"]
[White "GP9isback23"]
[Black "Herzog2012"]
[Result "1-0"]
[WhiteElo "2679"]
[BlackElo "2494"]
[TimeControl "180+1"]
[EndTime "8:38:12 PDT"]
[Termination "GP9isback23 won on time"]

1. Nf3 {[%clk 0:02:59.1]} 1... Nf6 {[%clk 0:02:58.5]} 2. b3 {[%clk 0:02:56.7]}
2... e6 {[%clk 0:02:54]} 3. Bb2 {[%clk 0:02:57.1]} 3... Be7 {[%clk 0:02:52.2]}
4. g3 {[%clk 0:02:56.9]} 4... b5 {[%clk 0:02:51.6]} 5. Bg2 {[%clk 0:02:57.8]}
5... Bb7 {[%clk 0:02:51.6]} 6. O-O {[%clk 0:02:58.5]} 6... c5 {[%clk 0:02:49.5]}
7. e3 {[%clk 0:02:43.4]} 7... O-O {[%clk 0:02:43.9]} 8. d4 {[%clk 0:02:42.8]}
8... cxd4 {[%clk 0:02:28.9]} 9. exd4 {[%clk 0:02:41.7]} 9... a5 {[%clk
0:02:22.3]} 10. a3 {[%clk 0:02:38.3]} 10... Na6 {[%clk 0:02:19]} 11. c3 {[%clk
0:02:38]} 11... Rc8 {[%clk 0:02:16.7]} 12. b4 {[%clk 0:02:38.2]} 12... a4 {[%clk
0:02:12.3]} 13. Nbd2 {[%clk 0:02:36.5]} 13... Ne8 {[%clk 0:02:07]} 14. Rc1
{[%clk 0:02:34.4]} 14... d5 {[%clk 0:01:53.7]} 15. Ne5 {[%clk 0:02:29.1]} 15...
Nd6 {[%clk 0:01:49.5]} 16. Qe2 {[%clk 0:02:10]} 16... Qc7 {[%clk 0:01:42.4]} 17.
Nd3 {[%clk 0:02:01.3]} 17... Nc4 {[%clk 0:01:40.7]} 18. Rc2 {[%clk 0:01:59]}
18... Bg5 {[%clk 0:01:22]} 19. f4 {[%clk 0:01:57.1]} 19... Bf6 {[%clk
0:01:20.7]} 20. Nc5 {[%clk 0:01:40]} 20... Nxc5 {[%clk 0:01:14.5]} 21. bxc5
{[%clk 0:01:40.1]} 21... Bc6 {[%clk 0:00:54.7]} 22. Nf3 {[%clk 0:01:32.6]} 22...
g6 {[%clk 0:00:30.2]} 23. Bc1 {[%clk 0:01:31.1]} 23... Bg7 {[%clk 0:00:29.6]}
24. Re1 {[%clk 0:01:31.1]} 24... Rce8 {[%clk 0:00:29.3]} 25. Qd1 {[%clk
0:01:22.5]} 25... f6 {[%clk 0:00:29.1]} 26. Rce2 {[%clk 0:01:23.2]} 26... Bd7
{[%clk 0:00:12.5]} 27. Nd2 {[%clk 0:01:20.5]} 27... Na5 {[%clk 0:00:09.5]} 28.
Nf1 {[%clk 0:01:11.9]} 28... Qc8 {[%clk 0:00:09.7]} 29. Ne3 {[%clk 0:01:11.9]}
29... Bc6 {[%clk 0:00:09.7]} 30. Qc2 {[%clk 0:01:09.7]} 30... Nc4 {[%clk
0:00:08.9]} 31. Qd1 {[%clk 0:01:09.8]} 31... Qd7 {[%clk 0:00:06.3]} 32. Bh3
{[%clk 0:01:09.9]} 32... Qc7 {[%clk 0:00:04.3]} 33. Bg2 {[%clk 0:01:06.9]} 33...
Qd7 {[%clk 0:00:04]} 34. Qc2 {[%clk 0:01:04.7]} 34... e5 {[%clk 0:00:03.5]} 35.
Nxc4 {[%clk 0:01:03.8]} 35... dxc4 {[%clk 0:00:03.2]} 36. d5 {[%clk 0:00:58.4]}
36... Ba8 {[%clk 0:00:02.7]} 37. c6 {[%clk 0:00:55.6]} 37... Qd6 {[%clk
0:00:02.6]} 38. fxe5 {[%clk 0:00:55.9]} 38... fxe5 {[%clk 0:00:03.1]} 39. Be3
{[%clk 0:00:51.9]} 39... e4 {[%clk 0:00:01.9]} 40. Bf4 {[%clk 0:00:47.8]} 40...
Qc5+ {[%clk 0:00:01.7]} 41. Kh1 {[%clk 0:00:47.8]} 41... Qxa3 {[%clk 0:00:02.5]}
42. Rxe4 {[%clk 0:00:44.5]} 42... Rxe4 {[%clk 0:00:02.3]} 43. Qxe4 {[%clk
0:00:45.3]} 43... Qc5 {[%clk 0:00:02.9]} 44. Qe6+ {[%clk 0:00:44.3]} 44... Kh8
{[%clk 0:00:02.6]} 45. Bd6 {[%clk 0:00:44.9]} 45... Qxd5 {[%clk 0:00:01.3]} 46.
Bxd5 {[%clk 0:00:44.3]} 1-0

[Event "Early-Titled-Tuesday-Blitz-September-12-2023"]
[Site "Chess.com"]
[Date "2023.09.12"]
[Round "4"]
[White "Jospem"]
[Black "Zkid"]
[Result "0-1"]
[WhiteElo "3103"]
[BlackElo "2903"]
[TimeControl "180+1"]
[EndTime "8:38:14 PDT"]
[Termination "Zkid won by checkmate"]

1. e4 {[%clk 0:03:00.9]} 1... e6 {[%clk 0:03:00.2]} 2. d4 {[%clk 0:03:01.2]}
2... d5 {[%clk 0:03:00.8]} 3. Nd2 {[%clk 0:02:59.1]} 3... c5 {[%clk 0:03:00.9]}
4. Ngf3 {[%clk 0:02:59.5]} 4... cxd4 {[%clk 0:03:01.2]} 5. Nxd4 {[%clk
0:03:00.3]} 5... Nc6 {[%clk 0:03:01.8]} 6. Bb5 {[%clk 0:03:00.5]} 6... Bd7
{[%clk 0:03:02.2]} 7. Nxc6 {[%clk 0:03:00.9]} 7... bxc6 {[%clk 0:03:03.1]} 8.
Bd3 {[%clk 0:03:01.4]} 8... Qc7 {[%clk 0:03:03.1]} 9. Qe2 {[%clk 0:03:01.6]}
9... Ne7 {[%clk 0:03:03.2]} 10. Nf3 {[%clk 0:02:59.9]} 10... Ng6 {[%clk
0:03:03.4]} 11. e5 {[%clk 0:02:57.3]} 11... c5 {[%clk 0:03:03.7]} 12. c3 {[%clk
0:02:57.7]} 12... Be7 {[%clk 0:03:00.7]} 13. h4 {[%clk 0:02:56.3]} 13... f6
{[%clk 0:03:01.1]} 14. exf6 {[%clk 0:02:43.7]} 14... gxf6 {[%clk 0:03:02]} 15.
c4 {[%clk 0:02:39.8]} 15... Ne5 {[%clk 0:02:38.7]} 16. O-O {[%clk 0:02:26]}
16... Nxd3 {[%clk 0:02:32.2]} 17. Qxd3 {[%clk 0:02:26.9]} 17... d4 {[%clk
0:02:32.7]} 18. b4 {[%clk 0:02:17]} 18... e5 {[%clk 0:02:28.8]} 19. bxc5 {[%clk
0:02:17.5]} 19... Bc6 {[%clk 0:02:07.4]} 20. Re1 {[%clk 0:02:17.8]} 20... Qd7
{[%clk 0:02:03.1]} 21. Nxe5 {[%clk 0:02:01.1]} 21... fxe5 {[%clk 0:02:01.5]} 22.
Rxe5 {[%clk 0:02:02]} 22... O-O {[%clk 0:01:42.5]} 23. Qg3+ {[%clk 0:01:10.4]}
23... Kh8 {[%clk 0:01:40.2]} 24. Bg5 {[%clk 0:00:58.3]} 24... Bf6 {[%clk
0:01:24.7]} 25. Bxf6+ {[%clk 0:00:42.6]} 25... Rxf6 {[%clk 0:01:25.6]} 26. Rd1
{[%clk 0:00:43.1]} 26... Raf8 {[%clk 0:01:19.4]} 27. Rg5 {[%clk 0:00:40.6]}
27... Qf7 {[%clk 0:00:31.6]} 28. Qe5 {[%clk 0:00:34.8]} 28... h6 {[%clk
0:00:26]} 29. Rg3 {[%clk 0:00:25.6]} 29... Kh7 {[%clk 0:00:24.6]} 30. Rxd4
{[%clk 0:00:25.6]} 30... Re8 {[%clk 0:00:16.8]} 31. Qd6 {[%clk 0:00:06]} 31...
Rxd6 {[%clk 0:00:15]} 32. Rxd6 {[%clk 0:00:06.9]} 32... Re1+ {[%clk 0:00:14.5]}
33. Kh2 {[%clk 0:00:07.6]} 33... Re6 {[%clk 0:00:15.2]} 34. Rd4 {[%clk
0:00:07.7]} 34... Qxf2 {[%clk 0:00:14]} 35. Rdg4 {[%clk 0:00:08.5]} 35... Qf6
{[%clk 0:00:13.7]} 36. h5 {[%clk 0:00:08.5]} 36... Re4 {[%clk 0:00:13.4]} 37.
Rg6 {[%clk 0:00:08.7]} 37... Rh4+ {[%clk 0:00:13.7]} 38. Kg1 {[%clk 0:00:09.4]}
38... Qd4+ {[%clk 0:00:14]} 39. Kf1 {[%clk 0:00:10.2]} 39... Rh1+ {[%clk
0:00:14.1]} 40. Ke2 {[%clk 0:00:11]} 40... Qxc4+ {[%clk 0:00:14.6]} 41. Kd2
{[%clk 0:00:11.8]} 41... Qd4+ {[%clk 0:00:14.7]} 42. Ke2 {[%clk 0:00:12.3]}
42... Bb5+ {[%clk 0:00:14.9]} 43. Kf3 {[%clk 0:00:13.2]} 43... Rf1# {[%clk
0:00:15.3]} 0-1

[Event "Early-Titled-Tuesday-Blitz-September-12-2023"]
[Site "Chess.com"]
[Date "2023.09.12"]
[Round "4"]
[White "Sjakkerntobi"]
[Black "F-Ghaith2021"]
[Result "1-0"]
[WhiteElo "2541"]
[BlackElo "2269"]
[TimeControl "180+1"]
[EndTime "8:38:15 PDT"]
[Termination "Sjakkerntobi won on time"]

1. f4 {[%clk 0:03:00.9]} 1... c5 {[%clk 0:02:59.3]} 2. Nf3 {[%clk 0:03:01]} 2...
d6 {[%clk 0:02:52.8]} 3. g3 {[%clk 0:03:00.9]} 3... g6 {[%clk 0:02:53]} 4. Bg2
{[%clk 0:03:01.6]} 4... Bg7 {[%clk 0:02:52.4]} 5. O-O {[%clk 0:03:02.4]} 5...
Nc6 {[%clk 0:02:52.8]} 6. d3 {[%clk 0:03:02.9]} 6... Nf6 {[%clk 0:02:48]} 7. Nc3
{[%clk 0:03:03]} 7... O-O {[%clk 0:02:47.8]} 8. e4 {[%clk 0:03:02.9]} 8... e5
{[%clk 0:02:47.6]} 9. fxe5 {[%clk 0:03:02.2]} 9... dxe5 {[%clk 0:02:44.9]} 10.
Bg5 {[%clk 0:03:02.5]} 10... h6 {[%clk 0:02:44.6]} 11. Be3 {[%clk 0:03:01.9]}
11... Nd4 {[%clk 0:02:43.9]} 12. Qd2 {[%clk 0:03:01.7]} 12... Nxf3+ {[%clk
0:02:38.4]} 13. Bxf3 {[%clk 0:02:58.5]} 13... Kh7 {[%clk 0:02:20.5]} 14. Bxc5
{[%clk 0:02:58.3]} 14... Re8 {[%clk 0:02:15.9]} 15. Be3 {[%clk 0:02:55.6]} 15...
a6 {[%clk 0:02:05.3]} 16. Rae1 {[%clk 0:02:52]} 16... b5 {[%clk 0:02:05.3]} 17.
a3 {[%clk 0:02:51.9]} 17... Rb8 {[%clk 0:02:04.3]} 18. Kh1 {[%clk 0:02:46.2]}
18... Bh3 {[%clk 0:02:02.3]} 19. Bg2 {[%clk 0:02:42.8]} 19... Be6 {[%clk
0:02:00.3]} 20. Bg1 {[%clk 0:02:22.6]} 20... b4 {[%clk 0:01:58.5]} 21. axb4
{[%clk 0:02:22.2]} 21... Rxb4 {[%clk 0:01:59.4]} 22. b3 {[%clk 0:02:22.7]} 22...
Qc7 {[%clk 0:01:56.6]} 23. Nd5 {[%clk 0:02:19.5]} 23... Bxd5 {[%clk 0:01:27.5]}
24. Qxb4 {[%clk 0:02:18.6]} 24... Ba8 {[%clk 0:01:24.7]} 25. Qb6 {[%clk
0:02:15]} 25... Qe7 {[%clk 0:01:15.2]} 26. Bc5 {[%clk 0:02:11.2]} 26... Qe6
{[%clk 0:01:05.6]} 27. Qxe6 {[%clk 0:02:09.8]} 27... Rxe6 {[%clk 0:01:06.5]} 28.
Ra1 {[%clk 0:02:04]} 28... Rc6 {[%clk 0:01:03.8]} 29. b4 {[%clk 0:02:01.9]}
29... Kg8 {[%clk 0:01:04]} 30. c4 {[%clk 0:01:59.7]} 30... Nd7 {[%clk
0:01:02.8]} 31. Be3 {[%clk 0:01:58.8]} 31... Rd6 {[%clk 0:01:02.5]} 32. Rfd1
{[%clk 0:01:58.3]} 32... Bb7 {[%clk 0:00:57.2]} 33. Kg1 {[%clk 0:01:54.8]} 33...
h5 {[%clk 0:00:56.6]} 34. Bh3 {[%clk 0:01:51]} 34... Nf8 {[%clk 0:00:50.9]} 35.
Bc5 {[%clk 0:01:43.3]} 35... Rd8 {[%clk 0:00:47.9]} 36. b5 {[%clk 0:01:38]}
36... axb5 {[%clk 0:00:46.1]} 37. cxb5 {[%clk 0:01:38.9]} 37... f5 {[%clk
0:00:45.1]} 38. exf5 {[%clk 0:01:36.7]} 38... Bf3 {[%clk 0:00:40.8]} 39. Rf1
{[%clk 0:01:30.2]} 39... Rxd3 {[%clk 0:00:39.3]} 40. fxg6 {[%clk 0:01:26.9]}
40... e4 {[%clk 0:00:39.1]} 41. Bg2 {[%clk 0:01:21.3]} 41... Bxa1 {[%clk
0:00:31.7]} 42. Rxa1 {[%clk 0:01:18.5]} 42... Nxg6 {[%clk 0:00:32]} 43. Bxf3
{[%clk 0:01:11.8]} 43... exf3 {[%clk 0:00:30.7]} 44. Rb1 {[%clk 0:01:07.5]}
44... Ne5 {[%clk 0:00:15.2]} 45. b6 {[%clk 0:01:06.5]} 45... Nd7 {[%clk
0:00:10.5]} 46. b7 {[%clk 0:01:06.2]} 46... Nb8 {[%clk 0:00:09.4]} 47. Ba7
{[%clk 0:01:04.8]} 47... Na6 {[%clk 0:00:08.4]} 48. Rb6 {[%clk 0:00:52.8]} 48...
Rd1+ {[%clk 0:00:03.1]} 49. Kf2 {[%clk 0:00:52.9]} 49... Rd2+ {[%clk 0:00:02.3]}
50. Kxf3 {[%clk 0:00:52.5]} 50... Rb2 {[%clk 0:00:02]} 51. Rxb2 {[%clk
0:00:50.5]} 1-0

[Event "Early-Titled-Tuesday-Blitz-September-12-2023"]
[Site "Chess.com"]
[Date "2023.09.12"]
[Round "4"]
[White "Mikasinski"]
[Black "Payyappat"]
[Result "1-0"]
[WhiteElo "2679"]
[BlackElo "2493"]
[TimeControl "180+1"]
[EndTime "8:38:17 PDT"]
[Termination "Mikasinski won by resignation"]

1. e4 {[%clk 0:03:00.9]} 1... c6 {[%clk 0:02:59.2]} 2. d4 {[%clk 0:03:01]} 2...
d5 {[%clk 0:02:59.7]} 3. e5 {[%clk 0:03:01.3]} 3... Bf5 {[%clk 0:02:59.6]} 4. h4
{[%clk 0:03:01.1]} 4... Qc7 {[%clk 0:02:58.8]} 5. Ne2 {[%clk 0:02:56.2]} 5... e6
{[%clk 0:02:51.3]} 6. Ng3 {[%clk 0:02:51.8]} 6... Ne7 {[%clk 0:02:47]} 7. Nc3
{[%clk 0:02:46.8]} 7... Nd7 {[%clk 0:02:36.8]} 8. Bg5 {[%clk 0:02:45.6]} 8... f6
{[%clk 0:02:29.3]} 9. exf6 {[%clk 0:02:45.2]} 9... gxf6 {[%clk 0:02:30.2]} 10.
Nxf5 {[%clk 0:02:45.7]} 10... Nxf5 {[%clk 0:02:29.1]} 11. Qh5+ {[%clk
0:02:46.1]} 11... Kd8 {[%clk 0:02:21]} 12. Bd2 {[%clk 0:02:36.2]} 12... Nxd4
{[%clk 0:02:14.3]} 13. O-O-O {[%clk 0:02:33.2]} 13... Nf5 {[%clk 0:01:19.6]} 14.
Re1 {[%clk 0:02:28.1]} 14... Qb6 {[%clk 0:01:01.5]} 15. Bd3 {[%clk 0:02:23.7]}
15... Ng7 {[%clk 0:00:56.7]} 16. Qg4 {[%clk 0:02:17.7]} 16... e5 {[%clk
0:00:44]} 17. f3 {[%clk 0:02:07.9]} 17... Kc7 {[%clk 0:00:16.9]} 18. h5 {[%clk
0:02:05.5]} 18... h6 {[%clk 0:00:16.6]} 19. Qg6 {[%clk 0:01:56.1]} 19... Re8
{[%clk 0:00:14.2]} 20. Rh4 {[%clk 0:01:52.2]} 20... Kb8 {[%clk 0:00:13.7]} 21.
Rd1 {[%clk 0:01:40]} 21... Qd8 {[%clk 0:00:13]} 22. Kb1 {[%clk 0:01:38.7]} 22...
Ne6 {[%clk 0:00:12.7]} 23. Qf5 {[%clk 0:01:35.7]} 23... Nd4 {[%clk 0:00:12.4]}
24. Qh3 {[%clk 0:01:32.1]} 24... Nc5 {[%clk 0:00:11.9]} 25. Bg6 {[%clk
0:01:31.9]} 25... Re6 {[%clk 0:00:11.3]} 26. Be3 {[%clk 0:01:28.4]} 26... Qb6
{[%clk 0:00:04.4]} 27. Bxd4 {[%clk 0:01:25.5]} 27... exd4 {[%clk 0:00:05.3]} 28.
Rhxd4 {[%clk 0:01:26.1]} 28... Bd6 {[%clk 0:00:05.4]} 29. Ka1 {[%clk 0:01:24.5]}
29... Be5 {[%clk 0:00:05.4]} 30. b4 {[%clk 0:01:02.4]} 30... Bxd4 {[%clk
0:00:05]} 31. Rxd4 {[%clk 0:01:03.3]} 31... Nb3+ {[%clk 0:00:04.6]} 32. axb3
{[%clk 0:01:02]} 32... Qxd4 {[%clk 0:00:05.5]} 33. Qxe6 {[%clk 0:00:50]} 33...
Qxc3+ {[%clk 0:00:06.1]} 34. Ka2 {[%clk 0:00:49.8]} 34... Qe5 {[%clk 0:00:07]}
35. Qd7 {[%clk 0:00:46.7]} 35... a5 {[%clk 0:00:06]} 36. bxa5 {[%clk 0:00:45.5]}
36... Ka7 {[%clk 0:00:06.2]} 37. Qg7 {[%clk 0:00:43.8]} 37... Ra8 {[%clk
0:00:06.3]} 38. Qxh6 {[%clk 0:00:43.7]} 38... Ka6 {[%clk 0:00:06.6]} 39. b4
{[%clk 0:00:43]} 39... Qc3 {[%clk 0:00:02.2]} 40. Bd3+ {[%clk 0:00:37.9]} 40...
Ka7 {[%clk 0:00:02.6]} 41. Qe3+ {[%clk 0:00:38.6]} 41... d4 {[%clk 0:00:02.9]}
42. Qe7 {[%clk 0:00:38.6]} 42... Qxb4 {[%clk 0:00:02.2]} 43. Qxb4 {[%clk
0:00:38.6]} 1-0

[Event "Early-Titled-Tuesday-Blitz-September-12-2023"]
[Site "Chess.com"]
[Date "2023.09.12"]
[Round "4"]
[White "KononenkoD"]
[Black "Rakitic2010"]
[Result "1-0"]
[WhiteElo "2589"]
[BlackElo "2409"]
[TimeControl "180+1"]
[EndTime "8:38:17 PDT"]
[Termination "KononenkoD won by resignation"]

1. e4 {[%clk 0:03:00.2]} 1... Nf6 {[%clk 0:02:59.2]} 2. e5 {[%clk 0:02:55.2]}
2... Nd5 {[%clk 0:02:58.1]} 3. c4 {[%clk 0:02:55.8]} 3... Nb6 {[%clk 0:02:58.2]}
4. a4 {[%clk 0:02:56.4]} 4... a5 {[%clk 0:02:55.2]} 5. Ra3 {[%clk 0:02:55.3]}
5... d6 {[%clk 0:02:55.1]} 6. exd6 {[%clk 0:02:54.8]} 6... cxd6 {[%clk
0:02:52.7]} 7. d4 {[%clk 0:02:55.4]} 7... g6 {[%clk 0:02:52]} 8. h4 {[%clk
0:02:55]} 8... h5 {[%clk 0:02:51.5]} 9. Re3 {[%clk 0:02:53.3]} 9... Bg7 {[%clk
0:02:50.4]} 10. Nf3 {[%clk 0:02:53.9]} 10... Bg4 {[%clk 0:02:50.3]} 11. Be2
{[%clk 0:02:51.7]} 11... Nc6 {[%clk 0:02:50.6]} 12. Rd3 {[%clk 0:02:43.1]} 12...
Nxc4 {[%clk 0:02:47.3]} 13. Nbd2 {[%clk 0:02:33.7]} 13... Nxd2 {[%clk
0:02:43.7]} 14. Bxd2 {[%clk 0:02:32.1]} 14... Qb6 {[%clk 0:02:36.3]} 15. O-O
{[%clk 0:02:29.1]} 15... O-O {[%clk 0:02:34.1]} 16. d5 {[%clk 0:02:21.5]} 16...
Bxf3 {[%clk 0:02:29.6]} 17. Bxf3 {[%clk 0:02:15.1]} 17... Ne5 {[%clk 0:02:23.2]}
18. Rb3 {[%clk 0:02:14.6]} 18... Qc7 {[%clk 0:02:13.3]} 19. Be4 {[%clk
0:02:10.6]} 19... Rac8 {[%clk 0:02:06.7]} 20. Qe2 {[%clk 0:02:08.4]} 20... Qc4
{[%clk 0:02:04]} 21. Qxc4 {[%clk 0:01:58.5]} 21... Rxc4 {[%clk 0:02:04.9]} 22.
Bb1 {[%clk 0:01:58]} 22... Rxa4 {[%clk 0:02:00.3]} 23. Rxb7 {[%clk 0:01:57.1]}
23... Rxh4 {[%clk 0:01:47.9]} 24. Bxa5 {[%clk 0:01:56.1]} 24... Nc4 {[%clk
0:01:31.4]} 25. Bc3 {[%clk 0:01:55]} 25... Bxc3 {[%clk 0:01:28.2]} 26. bxc3
{[%clk 0:01:55.9]} 26... Rc8 {[%clk 0:01:26.4]} 27. g3 {[%clk 0:01:36.1]} 27...
Rg4 {[%clk 0:01:20.4]} 28. Re1 {[%clk 0:01:26.5]} 28... Ne5 {[%clk 0:01:11.6]}
29. Kg2 {[%clk 0:01:23]} 29... Rxc3 {[%clk 0:01:09.9]} 30. Rxe7 {[%clk
0:01:23.3]} 30... h4 {[%clk 0:01:10.3]} 31. R1xe5 {[%clk 0:01:16.1]} 31... dxe5
{[%clk 0:01:06]} 32. d6 {[%clk 0:01:15.8]} 32... Kf8 {[%clk 0:00:49.1]} 33. Ba2
{[%clk 0:01:13]} 33... hxg3 {[%clk 0:00:34.6]} 34. Rxf7+ {[%clk 0:01:12.2]}
34... Ke8 {[%clk 0:00:33.3]} 35. d7+ {[%clk 0:01:12.5]} 35... Kd8 {[%clk
0:00:32.9]} 36. Be6 {[%clk 0:01:12.7]} 36... gxf2+ {[%clk 0:00:30.1]} 37. Bxg4
{[%clk 0:01:11.3]} 37... Kc7 {[%clk 0:00:18.2]} 38. Rf8 {[%clk 0:01:07.7]} 38...
Rd3 {[%clk 0:00:06.6]} 39. Rc8+ {[%clk 0:01:07.3]} 39... Kb7 {[%clk 0:00:05.8]}
40. d8=Q {[%clk 0:01:04.8]} 40... Rg3+ {[%clk 0:00:02.7]} 41. Kxf2 {[%clk
0:01:03.1]} 41... Rxg4 {[%clk 0:00:03.6]} 42. Qc7+ {[%clk 0:00:58.8]} 42... Ka6
{[%clk 0:00:02.9]} 43. Qc6+ {[%clk 0:00:55.3]} 43... Ka5 {[%clk 0:00:02.7]} 44.
Qa8+ {[%clk 0:00:53.4]} 44... Kb4 {[%clk 0:00:03]} 45. Qb7+ {[%clk 0:00:53.1]}
45... Ka3 {[%clk 0:00:02.3]} 46. Ra8+ {[%clk 0:00:53]} 46... Ra4 {[%clk
0:00:03.2]} 47. Qf3+ {[%clk 0:00:52.8]} 47... Kb4 {[%clk 0:00:02.8]} 48. Qe4+
{[%clk 0:00:52.9]} 1-0

[Event "Early-Titled-Tuesday-Blitz-September-12-2023"]
[Site "Chess.com"]
[Date "2023.09.12"]
[Round "4"]
[White "attack2mateU"]
[Black "MITerryble"]
[Result "0-1"]
[WhiteElo "2736"]
[BlackElo "2937"]
[TimeControl "180+1"]
[EndTime "8:38:19 PDT"]
[Termination "MITerryble won by checkmate"]

1. e4 {[%clk 0:03:00.9]} 1... e6 {[%clk 0:03:00.5]} 2. d4 {[%clk 0:03:00.8]}
2... d5 {[%clk 0:03:01.2]} 3. Nc3 {[%clk 0:03:01.5]} 3... Nf6 {[%clk 0:03:01.3]}
4. e5 {[%clk 0:03:01.7]} 4... Nfd7 {[%clk 0:03:01.5]} 5. f4 {[%clk 0:03:02.4]}
5... c5 {[%clk 0:03:02.2]} 6. Nf3 {[%clk 0:03:03.1]} 6... Nc6 {[%clk 0:03:03.1]}
7. Be3 {[%clk 0:03:03.4]} 7... Be7 {[%clk 0:03:03.7]} 8. a3 {[%clk 0:03:00.6]}
8... b6 {[%clk 0:03:03.1]} 9. Bb5 {[%clk 0:02:59.4]} 9... Bb7 {[%clk 0:03:02.8]}
10. Qd2 {[%clk 0:02:35.6]} 10... g6 {[%clk 0:02:58.6]} 11. O-O {[%clk
0:02:27.3]} 11... c4 {[%clk 0:02:50.6]} 12. Kh1 {[%clk 0:02:11.5]} 12... a6
{[%clk 0:02:43.3]} 13. Bxc6 {[%clk 0:02:11.2]} 13... Bxc6 {[%clk 0:02:44.2]} 14.
f5 {[%clk 0:01:53.8]} 14... exf5 {[%clk 0:02:25.4]} 15. e6 {[%clk 0:01:48.5]}
15... fxe6 {[%clk 0:02:21.3]} 16. Bh6 {[%clk 0:01:47.2]} 16... Nf6 {[%clk
0:02:10.1]} 17. Bg7 {[%clk 0:01:35.6]} 17... Rg8 {[%clk 0:02:08.8]} 18. Bxf6
{[%clk 0:01:35.3]} 18... Bxf6 {[%clk 0:02:08.8]} 19. Rae1 {[%clk 0:01:36]} 19...
Kd7 {[%clk 0:01:42.4]} 20. Ne5+ {[%clk 0:00:51.9]} 20... Bxe5 {[%clk 0:01:42.4]}
21. Rxe5 {[%clk 0:00:52.8]} 21... Qf6 {[%clk 0:01:19.5]} 22. Rfe1 {[%clk
0:00:50.9]} 22... Rae8 {[%clk 0:01:19]} 23. Ne2 {[%clk 0:00:47.8]} 23... g5
{[%clk 0:01:16.9]} 24. Qb4 {[%clk 0:00:48.2]} 24... Kc7 {[%clk 0:01:16.6]} 25.
Nc3 {[%clk 0:00:42.3]} 25... f4 {[%clk 0:01:05.6]} 26. a4 {[%clk 0:00:41.8]}
26... a5 {[%clk 0:00:56.4]} 27. Nb5+ {[%clk 0:00:41.6]} 27... Bxb5 {[%clk
0:00:56.9]} 28. Qxb5 {[%clk 0:00:41.7]} 28... f3 {[%clk 0:00:54.9]} 29. Qa6
{[%clk 0:00:11.5]} 29... Ra8 {[%clk 0:00:54.4]} 30. Qb5 {[%clk 0:00:11.3]} 30...
Rge8 {[%clk 0:00:47.8]} 31. Rf1 {[%clk 0:00:10]} 31... g4 {[%clk 0:00:47.4]} 32.
b3 {[%clk 0:00:08.9]} 32... Rf8 {[%clk 0:00:38.9]} 33. Kg1 {[%clk 0:00:07.3]}
33... f2+ {[%clk 0:00:12.3]} 34. Kh1 {[%clk 0:00:07.5]} 34... g3 {[%clk
0:00:12.9]} 35. bxc4 {[%clk 0:00:05.5]} 35... Qh4 {[%clk 0:00:10]} 36. h3 {[%clk
0:00:05.9]} 36... Rg8 {[%clk 0:00:10.2]} 37. cxd5 {[%clk 0:00:02.2]} 37... Qxh3+
{[%clk 0:00:09.8]} 38. gxh3 {[%clk 0:00:03.1]} 38... g2+ {[%clk 0:00:10.3]} 39.
Kh2 {[%clk 0:00:03.9]} 39... g1=Q+ {[%clk 0:00:10.9]} 40. Rxg1 {[%clk
0:00:04.2]} 40... fxg1=Q# {[%clk 0:00:11.8]} 0-1

[Event "Early-Titled-Tuesday-Blitz-September-12-2023"]
[Site "Chess.com"]
[Date "2023.09.12"]
[Round "4"]
[White "GlavkonVVS"]
[Black "kleinebeer98"]
[Result "0-1"]
[WhiteElo "2577"]
[BlackElo "2835"]
[TimeControl "180+1"]
[EndTime "8:38:19 PDT"]
[Termination "kleinebeer98 won on time"]

1. c4 {[%clk 0:03:00.9]} 1... e5 {[%clk 0:02:58.7]} 2. Nc3 {[%clk 0:03:00.8]}
2... Nf6 {[%clk 0:02:59.2]} 3. g3 {[%clk 0:03:01.1]} 3... c6 {[%clk 0:02:58.4]}
4. Bg2 {[%clk 0:03:01.2]} 4... d5 {[%clk 0:02:58.2]} 5. cxd5 {[%clk 0:03:01.7]}
5... cxd5 {[%clk 0:02:58.8]} 6. Qb3 {[%clk 0:03:02.3]} 6... d4 {[%clk
0:02:52.2]} 7. Bxb7 {[%clk 0:02:59.4]} 7... Bxb7 {[%clk 0:02:53.1]} 8. Qxb7
{[%clk 0:02:58.6]} 8... Nbd7 {[%clk 0:02:50.2]} 9. Nd5 {[%clk 0:02:56.1]} 9...
Rc8 {[%clk 0:02:39.3]} 10. Nxf6+ {[%clk 0:02:48.8]} 10... gxf6 {[%clk
0:02:40.2]} 11. Nf3 {[%clk 0:02:44.8]} 11... d3 {[%clk 0:02:25.1]} 12. exd3
{[%clk 0:02:30.8]} 12... Nc5 {[%clk 0:02:25]} 13. Qb5+ {[%clk 0:02:30.7]} 13...
Qd7 {[%clk 0:02:25.7]} 14. Qxd7+ {[%clk 0:02:26.3]} 14... Kxd7 {[%clk
0:02:26.6]} 15. d4 {[%clk 0:02:18.5]} 15... Nd3+ {[%clk 0:02:23.8]} 16. Ke2
{[%clk 0:02:17.7]} 16... e4 {[%clk 0:02:24.1]} 17. Nh4 {[%clk 0:02:14.6]} 17...
Ke6 {[%clk 0:02:10.9]} 18. f3 {[%clk 0:02:02.6]} 18... f5 {[%clk 0:02:11.3]} 19.
fxe4 {[%clk 0:01:46.1]} 19... fxe4 {[%clk 0:02:12.2]} 20. Rf1 {[%clk 0:01:45.3]}
20... Be7 {[%clk 0:02:01.8]} 21. Nf5 {[%clk 0:01:32.8]} 21... Bf6 {[%clk
0:02:02.4]} 22. d5+ {[%clk 0:01:10.2]} 22... Kxd5 {[%clk 0:01:55.2]} 23. Ne3+
{[%clk 0:01:10.7]} 23... Ke6 {[%clk 0:01:55.5]} 24. Rb1 {[%clk 0:01:08.1]} 24...
Bg5 {[%clk 0:01:45.1]} 25. b4 {[%clk 0:01:06.2]} 25... Bxe3 {[%clk 0:01:42.7]}
26. Kxe3 {[%clk 0:01:06]} 26... f5 {[%clk 0:01:39.3]} 27. g4 {[%clk 0:01:01.1]}
27... fxg4 {[%clk 0:01:34.3]} 28. Kxe4 {[%clk 0:01:00.3]} 28... Rhd8 {[%clk
0:01:34.8]} 29. b5 {[%clk 0:00:50.7]} 29... Rc4+ {[%clk 0:01:29.6]} 30. Ke3
{[%clk 0:00:50]} 30... Ke5 {[%clk 0:01:28.3]} 31. Bb2+ {[%clk 0:00:44.2]} 31...
Nxb2 {[%clk 0:01:06.1]} 32. Rxb2 {[%clk 0:00:44]} 32... Re4+ {[%clk 0:01:06.6]}
33. Kf2 {[%clk 0:00:43.8]} 33... h5 {[%clk 0:01:02.8]} 34. Kg1 {[%clk
0:00:33.4]} 34... h4 {[%clk 0:01:00.6]} 35. Rc2 {[%clk 0:00:15.7]} 35... Rd5
{[%clk 0:00:53.8]} 36. Rc7 {[%clk 0:00:13.5]} 36... Rxd2 {[%clk 0:00:51.9]} 37.
Rxa7 {[%clk 0:00:13.5]} 37... Rb4 {[%clk 0:00:43.8]} 38. a4 {[%clk 0:00:12]}
38... Rbb2 {[%clk 0:00:42.8]} 39. Re1+ {[%clk 0:00:10.9]} 39... Kd6 {[%clk
0:00:42.5]} 40. Rg7 {[%clk 0:00:08.5]} 40... Rg2+ {[%clk 0:00:37.2]} 41. Kh1
{[%clk 0:00:08.8]} 41... Rxh2+ {[%clk 0:00:37.3]} 42. Kg1 {[%clk 0:00:09.2]}
42... Rbg2+ {[%clk 0:00:32.7]} 43. Kf1 {[%clk 0:00:09.3]} 43... h3 {[%clk
0:00:33.6]} 44. Rg6+ {[%clk 0:00:06.8]} 44... Kc5 {[%clk 0:00:34.1]} 45. Re5+
{[%clk 0:00:06.6]} 45... Kd4 {[%clk 0:00:34.3]} 0-1